bitfinex/quotes_BTCUSD_20220731
["timestamp","ask_amount","ask_price","bid_price","bid_amount"]
[1659277937007,0.28847574,23809.0,23808.0,0.90743746]
[1659277937721,0.28847574,23809.0,23808.0,0.90433568]
[1659277937950,0.21747574,23809.0,23808.0,0.89733568]
[1659277938629,0.28847574,23809.0,23808.0,0.60069768]
[1659277939078,0.28847574,23809.0,23808.0,0.90433568]
[1659277939549,0.28847574,23809.0,23808.0,0.60069768]
[1659277939989,0.21747574,23809.0,23808.0,0.89733568]
[1659277940214,0.21747574,23809.0,23808.0,0.59679946]
[1659277940440,0.21747574,23809.0,23808.0,0.59369768]
[1659277940669,0.29147574,23809.0,23808.0,0.90833568]
[1659277941207,0.29147574,23809.0,23808.0,0.60779946]
[1659277941426,0.29147574,23809.0,23808.0,0.60802614]
[1659277941650,0.29147574,23809.0,23808.0,0.91166414]
[1659277941877,0.21747574,23809.0,23808.0,0.90066414]
[1659277942094,0.21747574,23809.0,23808.0,0.59702614]
[1659277942577,0.29147574,23809.0,23808.0,0.60469768]
[1659277942813,0.29147574,23809.0,23808.0,1.20833568]
[1659277943036,0.29147574,23809.0,23808.0,1.04907916]
[1659277943288,0.29147574,23809.0,23808.0,1.34907916]
[1659277943521,0.29147574,23809.0,23808.0,1.36793568]
[1659277943740,0.29147574,23809.0,23808.0,1.33643568]
[1659277943993,0.21747574,23809.0,23808.0,1.32543568]
[1659277944666,0.21747574,23809.0,23808.0,1.24533568]
[1659277945172,0.21747574,23809.0,23808.0,0.94533568]
[1659277945405,0.21747574,23809.0,23808.0,1.24533568]
[1659277945870,0.21747574,23809.0,23808.0,1.19733568]
[1659277946099,0.21747574,23809.0,23808.0,1.19756236]
[1659277946536,0.21747574,23809.0,23808.0,1.24556236]
[1659277946985,0.21747574,23809.0,23808.0,0.94556236]
[1659277947212,0.21747574,23809.0,23808.0,0.94533568]
[1659277947894,0.21747574,23809.0,23808.0,0.89733568]
[1659277948349,0.21747574,23809.0,23808.0,0.89756236]
[1659277948573,0.21747574,23809.0,23808.0,1.24256236]
[1659277949104,0.21747574,23809.0,23808.0,0.94256236]
[1659277949562,0.21747574,23809.0,23808.0,1.24256236]
[1659277949782,0.21747574,23809.0,23808.0,0.94256236]
[1659277950009,0.21747574,23809.0,23808.0,0.89756236]
[1659277950446,0.21747574,23809.0,23808.0,1.19756236]
[1659277950663,0.21747574,23809.0,23808.0,1.24456236]
[1659277951135,0.21747574,23809.0,23808.0,0.94456236]
[1659277951842,0.21747574,23809.0,23808.0,0.89756236]
[1659277951843,0.21738346,23809.0,23808.0,0.89756236]
[1659277952503,0.21738346,23809.0,23808.0,0.94456236]
[1659277952989,0.21738346,23809.0,23808.0,1.24456236]
[1659277953446,0.00192346,23809.0,23808.0,1.25720584]
[1659277953662,0.00192346,23809.0,23808.0,1.97730584]
[1659277953944,0.00192346,23809.0,23808.0,1.98030584]
[1659277954168,0.00232346,23811.0,23810.0,0.15]
[1659277954390,0.00232346,23811.0,23810.0,0.86399711]
[1659277954604,0.00232346,23811.0,23810.0,1.21399711]
[1659277955274,0.363,23818.0,23810.0,1.22122256]
[1659277955508,0.32951231,23818.0,23811.0,1.48695733]
[1659277955748,0.00022032,23821.0,23817.0,0.1]
[1659277955994,0.00022032,23821.0,23818.0,1.16399711]
[1659277956216,0.03377138,23820.0,23818.0,0.81089533]
[1659277956522,0.03377138,23820.0,23818.0,0.50725733]
[1659277956770,0.18956,23819.0,23812.0,0.8843]
[1659277957047,0.18956,23819.0,23813.0,0.71089533]
[1659277957273,0.18956,23819.0,23813.0,0.40725733]
[1659277957501,0.0022,23819.0,23814.0,0.71089533]
[1659277957726,0.0022,23819.0,23815.0,0.71089533]
[1659277957949,0.0022,23819.0,23816.0,0.00310178]
[1659277958172,0.0022,23819.0,23817.0,0.05]
[1659277958402,0.0022,23819.0,23816.0,0.40725733]
[1659277958688,0.00145406,23819.0,23818.0,0.40725733]
[1659277959390,0.00333586,23819.0,23818.0,0.40725733]
[1659277960040,0.00333586,23819.0,23818.0,0.41035911]
[1659277962130,0.00333586,23819.0,23818.0,0.40725733]
[1659277962812,0.03490724,23819.0,23818.0,0.40725733]
[1659277963041,0.00333586,23819.0,23818.0,0.40725733]
[1659277963485,0.00333586,23819.0,23818.0,0.41446744]
[1659277963942,0.17776724,23819.0,23818.0,0.00721011]
[1659277964230,0.22226724,23819.0,23818.0,0.00721011]
[1659277964671,0.52590524,23819.0,23818.0,0.00721011]
[1659277964884,0.22226724,23819.0,23818.0,0.00721011]
[1659277965127,0.03490724,23819.0,23818.0,0.00721011]
[1659277965376,0.00333586,23819.0,23818.0,0.00721011]
[1659277966785,0.19069586,23819.0,23818.0,0.00721011]
[1659277967248,0.00333586,23819.0,23818.0,0.00721011]
[1659277967487,0.00333586,23819.0,23815.0,0.18644035]
[1659277967722,0.00333586,23819.0,23816.0,0.71089533]
[1659277967979,0.00333586,23819.0,23817.0,0.71089533]
[1659277968218,0.77445556,23819.0,23818.0,0.05]
[1659277968437,0.77445556,23819.0,23818.0,0.00721199]
[1659277968890,0.80602694,23819.0,23818.0,0.00721199]
[1659277969349,0.66316694,23819.0,23818.0,0.00721199]
[1659277969570,0.62659556,23819.0,23818.0,0.4620711]
[1659277969798,0.62659556,23819.0,23818.0,0.7657091]
[1659277970491,0.62844611,23819.0,23818.0,0.7657091]
[1659277971198,0.62844611,23819.0,23818.0,1.4157091]
[1659277971657,0.62844611,23819.0,23818.0,1.4601689]
[1659277971940,0.62844611,23819.0,23818.0,1.1601689]
[1659277972164,0.62344611,23819.0,23818.0,1.14752542]
[1659277972387,6.11e-06,23819.0,23818.0,1.45302542]
[1659277972626,0.00405055,23820.0,23819.0,0.1]
[1659277972846,0.00405055,23820.0,23819.0,1.27208533]
[1659277973780,0.0022,23820.0,23819.0,1.24059533]
[1659277974706,0.0022,23820.0,23819.0,1.30959533]
[1659277974933,0.0022,23820.0,23819.0,1.34108533]
[1659277975394,0.00405003,23820.0,23819.0,1.34108533]
[1659277975876,0.00405003,23820.0,23819.0,0.94059533]
[1659277976570,0.00405003,23820.0,23819.0,1.01959533]
[1659277977027,0.00405003,23820.0,23819.0,0.88989533]
[1659277977254,0.00405003,23820.0,23819.0,1.23989533]
[1659277977992,0.00405003,23820.0,23819.0,1.16089533]
[1659277978222,0.00405003,23820.0,23819.0,1.28899533]
[1659277978674,0.00405003,23820.0,23819.0,1.30799533]
[1659277979890,0.00405003,23820.0,23819.0,1.28899533]
[1659277980354,0.00405003,23820.0,23819.0,1.32048533]
[1659277980598,0.00405003,23820.0,23819.0,1.36799533]
[1659277981994,0.00405003,23820.0,23819.0,1.28899533]
[1659277982234,0.00238181,23823.0,23822.0,0.1]
[1659277982461,0.00238181,23823.0,23822.0,2.39209711]
[1659277982679,0.00238181,23823.0,23822.0,2.70474059]
[1659277982919,0.00238181,23823.0,23822.0,2.40474059]
[1659277983153,0.00238181,23823.0,23822.0,2.43622059]
[1659277983417,0.00238181,23823.0,23822.0,2.35474059]
[1659277983647,0.00238181,23823.0,23822.0,2.3493181]
[1659277984118,1.81e-06,23823.0,23822.0,3.0784981]
[1659277984355,1.81e-06,23823.0,23822.0,2.39344158]
[1659277984595,1.81e-06,23823.0,23822.0,2.44196158]
[1659277985314,1.81e-06,23823.0,23822.0,2.4293181]
[1659277985555,1.81e-06,23823.0,23822.0,2.6107981]
[1659277985775,1.81e-06,23823.0,23822.0,2.6293181]
[1659277986024,1.81e-06,23823.0,23822.0,2.54964435]
[1659277986716,1.81e-06,23823.0,23822.0,2.67964435]
[1659277987946,1.81e-06,23823.0,23822.0,2.59964435]
[1659277988516,1.81e-06,23823.0,23822.0,2.67964435]
[1659277988947,1.81e-06,23823.0,23822.0,2.62964435]
[1659277989176,1.81e-06,23823.0,23822.0,2.67964435]
[1659277989418,0.00036824,23831.0,23823.0,0.9]
[1659277989672,0.00036824,23831.0,23824.0,0.40725733]
[1659277991630,0.00036824,23831.0,23824.0,0.40686733]
[1659277991631,0.00224279,23831.0,23824.0,0.40686733]
[1659277991841,0.00224279,23831.0,23824.0,0.51174433]
[1659277992046,0.00224279,23831.0,23825.0,0.71089533]
[1659277992319,0.00224279,23831.0,23826.0,0.40725733]
[1659277993250,0.5,23830.0,23826.0,0.40725733]
[1659277993460,0.03157138,23829.0,23826.0,0.40725733]
[1659277993914,0.05224279,23831.0,23826.0,0.40725733]
[1659277994370,0.85,23827.0,23824.0,0.40725733]
[1659277994594,0.05,23825.0,23823.0,0.4141028]
[1659277994932,0.05,23825.0,23822.0,0.18644035]
[1659277994933,0.35,23824.0,23822.0,0.18644035]
[1659277995106,1.503638,23823.0,23822.0,0.18644035]
[1659277995329,1.203638,23823.0,23822.0,0.18644035]
[1659277995547,0.43520938,23823.0,23822.0,0.18644035]
[1659277995763,0.38520938,23823.0,23822.0,0.18644035]
[1659277996611,0.38697068,23823.0,23822.0,0.18644035]
[1659277996832,0.68697068,23823.0,23822.0,0.18644035]
[1659277997090,0.68697068,23823.0,23811.0,0.9181]
[1659277997091,0.05,23816.0,23811.0,0.9181]
[1659277997354,0.05,23816.0,23812.0,0.40725733]
[1659277998459,0.064,23816.0,23813.0,0.05]
[1659277998753,0.5,23813.0,23812.0,0.08085838]
[1659277998979,0.803638,23813.0,23812.0,0.08085838]
[1659277999933,0.05325274,23816.0,23812.0,0.41411571]
[1659278000143,0.05325274,23816.0,23812.0,0.00685838]
[1659278000368,0.303638,23815.0,23812.0,0.00685838]
[1659278000592,0.24848637,23813.0,23812.0,0.00185838]
[1659278000829,0.28005775,23813.0,23812.0,0.00185838]
[1659278001505,0.37455775,23813.0,23812.0,0.00185838]
[1659278001722,0.62419575,23813.0,23806.0,0.3]
[1659278001948,0.32055775,23813.0,23807.0,0.40725733]
[1659278002397,0.37455775,23813.0,23807.0,0.40725733]
[1659278002807,0.303638,23812.0,23807.0,0.40725733]
[1659278003043,0.13719775,23813.0,23807.0,0.40725733]
[1659278003782,0.00170213,23812.0,23808.0,0.303638]
[1659278004006,0.00170213,23812.0,23811.0,0.1]
[1659278004244,0.00170213,23812.0,23811.0,1.11089533]
[1659278004493,0.00170213,23812.0,23811.0,0.50725733]
[1659278004698,0.04970213,23812.0,23811.0,0.50725733]
[1659278004913,0.04970213,23812.0,23811.0,0.40725733]
[1659278005407,0.04970213,23812.0,23806.0,0.40725733]
[1659278005408,0.23706213,23812.0,23806.0,0.40725733]
[1659278005639,0.08127351,23812.0,23807.0,0.3]
[1659278005858,0.04970213,23812.0,23808.0,0.40725733]
[1659278006086,0.04970213,23812.0,23809.0,0.00310178]
[1659278006311,0.00170213,23812.0,23810.0,0.40725733]
[1659278006528,0.06070213,23812.0,23810.0,0.40725733]
[1659278007200,0.06070213,23812.0,23811.0,0.00671995]
[1659278007455,0.06070213,23812.0,23811.0,0.41397728]
[1659278007919,0.00170213,23812.0,23811.0,0.41397728]
[1659278008394,0.00170213,23812.0,23811.0,0.71397728]
[1659278008611,0.07570213,23812.0,23811.0,1.06761528]
[1659278009063,0.07570213,23812.0,23811.0,1.0679453]
[1659278009492,0.07570213,23812.0,23811.0,1.1179453]
[1659278009942,0.00170213,23812.0,23811.0,1.1179453]
[1659278010177,6.37e-06,23813.0,23812.0,0.05]
[1659278010406,6.37e-06,23813.0,23812.0,1.39549711]
[1659278010852,6.37e-06,23813.0,23812.0,1.09549711]
[1659278011087,6.37e-06,23813.0,23812.0,1.06399711]
[1659278011344,6.37e-06,23813.0,23812.0,1.09549711]
[1659278011587,0.00167637,23813.0,23812.0,1.42669711]
[1659278012483,0.00167637,23813.0,23812.0,1.50569711]
[1659278012728,0.00167637,23813.0,23812.0,1.09299711]
[1659278013875,0.00167637,23813.0,23812.0,1.01399711]
[1659278014547,0.00167637,23813.0,23812.0,1.09299711]
[1659278014770,0.00167637,23813.0,23812.0,1.66419711]
[1659278016402,0.00167637,23813.0,23812.0,1.28519711]
[1659278016637,0.00167637,23813.0,23812.0,1.36419711]
[1659278017078,0.18903637,23813.0,23812.0,1.36109533]
[1659278017306,0.18903637,23813.0,23812.0,0.78989533]
[1659278017533,0.18903637,23813.0,23812.0,0.382638]
[1659278017891,0.18903637,23813.0,23812.0,0.079]
[1659278017979,0.18903637,23813.0,23811.0,0.01010933]
[1659278018209,0.18903637,23813.0,23812.0,0.00310178]
[1659278018435,0.18903637,23813.0,23811.0,0.41736666]
[1659278018664,0.23603637,23813.0,23812.0,0.353638]
[1659278018922,0.23603637,23813.0,23812.0,0.303638]
[1659278019145,0.04867637,23813.0,23811.0,0.41736666]
[1659278019381,0.04867637,23813.0,23812.0,0.303638]
[1659278019825,0.00167637,23813.0,23812.0,1.01089533]
[1659278020051,0.5280851,23813.0,23812.0,1.06089533]
[1659278020273,0.5280851,23813.0,23812.0,1.01089533]
[1659278020489,0.5740851,23813.0,23812.0,1.01089533]
[1659278020950,0.5740851,23813.0,23812.0,0.71089533]
[1659278021173,0.5740851,23813.0,23812.0,0.76089533]
[1659278021413,0.5740851,23813.0,23812.0,0.71089533]
[1659278021662,0.60565648,23813.0,23812.0,0.71089533]
[1659278021872,0.5740851,23813.0,23812.0,0.71089533]
[1659278022087,0.5740851,23813.0,23812.0,1.06089533]
[1659278022314,0.5280851,23813.0,23812.0,1.06089533]
[1659278022538,0.5490851,23813.0,23812.0,1.13689533]
[1659278023244,0.5490851,23813.0,23812.0,1.14399361]
[1659278024618,0.5700851,23813.0,23812.0,1.21999361]
[1659278024838,0.5700851,23813.0,23812.0,0.49035561]
[1659278024839,0.5490851,23813.0,23812.0,0.49035561]
[1659278025057,0.5490851,23813.0,23812.0,0.79399361]
[1659278025292,0.5490851,23813.0,23812.0,0.38673628]
[1659278025293,0.7364451,23813.0,23812.0,0.38673628]
[1659278025583,0.7364451,23813.0,23812.0,0.08309828]
[1659278025817,0.76801648,23813.0,23812.0,0.08309828]
[1659278026049,0.74701648,23813.0,23812.0,0.00709828]
[1659278026269,0.7154451,23813.0,23812.0,0.00709828]
[1659278026496,0.7614451,23813.0,23812.0,0.00709828]
[1659278026723,0.7169451,23813.0,23812.0,0.00709828]
[1659278026949,0.5740851,23813.0,23812.0,0.31073628]
[1659278027182,0.5740851,23813.0,23812.0,0.303638]
[1659278027398,0.5740851,23813.0,23811.0,0.303638]
[1659278027618,0.5740851,23813.0,23812.0,0.3]
[1659278027847,0.5280851,23813.0,23812.0,0.603638]
[1659278028321,0.5280851,23813.0,23812.0,1.01089533]
[1659278028555,0.5760851,23813.0,23812.0,0.71089533]
[1659278029971,0.5280851,23813.0,23812.0,0.71089533]
[1659278030218,0.5280851,23813.0,23812.0,0.41435865]
[1659278030445,0.7154451,23813.0,23812.0,0.00710132]
[1659278030712,0.7694451,23813.0,23812.0,0.00710132]
[1659278031377,0.7694451,23813.0,23807.0,0.33125381]
[1659278031378,0.7694451,23813.0,23808.0,0.3]
[1659278031613,0.7694451,23813.0,23809.0,0.71089533]
[1659278031842,0.7249451,23813.0,23810.0,0.71399711]
[1659278032066,0.6709451,23813.0,23811.0,0.71089533]
[1659278032306,0.6,23812.0,23807.0,0.00710056]
[1659278032518,0.6,23812.0,23808.0,0.40725733]
[1659278032961,0.6,23812.0,23807.0,0.00710056]
[1659278032962,0.05,23811.0,23807.0,0.00710056]
[1659278033679,0.05,23811.0,23808.0,0.303638]
[1659278033902,0.05,23811.0,23807.0,0.00710056]
[1659278034127,0.05,23811.0,23808.0,0.303638]
[1659278034351,0.05303064,23811.0,23808.0,0.00327126]
[1659278034579,0.05296219,23811.0,23807.0,0.41435789]
[1659278034804,0.303638,23810.0,23807.0,0.08210056]
[1659278035049,0.06596219,23811.0,23807.0,0.08210056]
[1659278035284,0.06596219,23811.0,23807.0,0.075]
[1659278036182,0.03157138,23810.0,23807.0,0.075]
[1659278036397,0.05,23808.0,23807.0,0.074895]
[1659278036638,0.1,23808.0,23806.0,0.00710813]
[1659278036890,0.05,23807.0,23806.0,0.00710813]
[1659278037205,0.43520938,23807.0,23806.0,0.00710813]
[1659278037429,0.84246671,23807.0,23806.0,0.00710813]
[1659278037682,0.79246671,23807.0,23806.0,0.00710813]
[1659278038563,0.82846671,23807.0,23806.0,0.00710813]
[1659278039973,0.79246671,23807.0,23806.0,0.00710813]
[1659278040657,0.83046671,23807.0,23806.0,0.00710813]
[1659278041879,0.79246671,23807.0,23806.0,0.00710813]
[1659278042556,0.83046671,23807.0,23806.0,0.00710813]
[1659278042774,0.038,23807.0,23806.0,0.0103794]
[1659278043005,0.038,23807.0,23806.0,0.00710813]
[1659278043727,0.341638,23807.0,23806.0,0.00710813]
[1659278043948,0.303638,23807.0,23806.0,0.00710813]
[1659278044629,0.342638,23807.0,23806.0,0.00710813]
[1659278045080,0.74989533,23807.0,23806.0,0.00710813]
[1659278045537,0.86989533,23807.0,23806.0,0.00710813]
[1659278045986,0.83089533,23807.0,23806.0,0.00710813]
[1659278046217,0.86246671,23807.0,23806.0,0.00710813]
[1659278046657,0.90046671,23807.0,23806.0,0.00710813]
[1659278046890,0.461638,23807.0,23806.0,0.00710813]
[1659278047361,0.49320938,23807.0,23806.0,0.00710813]
[1659278047591,0.461638,23807.0,23806.0,0.00701507]
[1659278047822,0.423638,23807.0,23806.0,0.00701507]
[1659278048041,0.12,23807.0,23806.0,0.00701507]
[1659278048497,0.158,23807.0,23806.0,0.00701507]
[1659278048860,0.158,23807.0,23806.0,0.01011685]
[1659278049229,0.158,23807.0,23806.0,0.00701507]
[1659278049881,0.12,23807.0,23806.0,0.01011685]
[1659278050139,0.12,23807.0,23806.0,0.00701507]
[1659278050582,0.158,23807.0,23806.0,0.00701507]
[1659278050811,0.158,23807.0,23806.0,0.01011685]
[1659278051956,0.12,23807.0,23806.0,0.01011685]
[1659278052413,0.12,23807.0,23806.0,0.01028634]
[1659278052701,0.12,23807.0,23806.0,0.01011685]
[1659278052702,0.158,23807.0,23806.0,0.01011685]
[1659278053157,0.158,23807.0,23806.0,0.00701507]
[1659278053394,0.158,23807.0,23806.0,0.4142724]
[1659278053828,0.158,23807.0,23806.0,0.41737418]
[1659278054085,0.12,23807.0,23806.0,0.4142724]
[1659278054536,0.161,23807.0,23806.0,0.4142724]
[1659278054761,0.161,23807.0,23806.0,0.41737418]
[1659278055880,0.15987682,23807.0,23806.0,0.41737418]
[1659278056119,0.11887682,23807.0,23806.0,0.41737418]
[1659278056679,0.15787682,23807.0,23806.0,0.4142724]
[1659278057571,0.15787682,23807.0,23806.0,0.41737418]
[1659278058034,0.11887682,23807.0,23806.0,0.81737418]
[1659278058271,0.11887682,23807.0,23806.0,1.15251218]
[1659278058516,0.11887682,23807.0,23806.0,1.59485566]
[1659278058745,0.00302844,23808.0,23807.0,0.1]
[1659278058978,0.00302844,23808.0,23807.0,1.44239533]
[1659278060647,0.00302844,23808.0,23807.0,1.52139533]
[1659278060893,0.00302844,23808.0,23807.0,1.22139533]
[1659278061135,0.00302844,23808.0,23807.0,0.88989533]
[1659278061373,0.00302844,23808.0,23807.0,0.89328116]
[1659278061595,0.00302844,23808.0,23807.0,0.92478116]
[1659278061827,0.00302844,23808.0,23807.0,0.84578116]
[1659278062503,0.00302844,23808.0,23807.0,1.22478116]
[1659278064367,0.00449459,23808.0,23807.0,1.14578116]
[1659278064613,0.00449459,23808.0,23807.0,1.52478116]
[1659278064842,0.00449459,23808.0,23807.0,1.22478116]
[1659278065285,0.00449459,23808.0,23807.0,1.19328116]
[1659278066008,0.12449459,23808.0,23807.0,1.11428116]
[1659278066228,0.12449459,23808.0,23807.0,0.71089533]
[1659278066696,0.12449459,23808.0,23807.0,0.78989533]
[1659278066928,0.12449459,23808.0,23807.0,0.48625733]
[1659278067158,0.00449459,23808.0,23807.0,0.48625733]
[1659278068123,0.00449459,23808.0,23807.0,0.71089533]
[1659278068582,0.00449459,23808.0,23807.0,0.78889533]
[1659278068807,0.00449459,23808.0,23807.0,0.48525733]
[1659278069264,0.00449459,23808.0,23807.0,0.78889533]
[1659278069464,0.00449459,23808.0,23807.0,0.48525733]
[1659278069732,0.00449459,23808.0,23807.0,0.78889533]
[1659278069955,0.00449459,23808.0,23807.0,0.40725733]
[1659278070620,0.00449459,23808.0,23807.0,0.48525733]
[1659278072025,0.00449459,23808.0,23806.0,0.01350675]
[1659278072265,0.00449459,23808.0,23806.0,0.00701507]
[1659278072490,0.00449459,23808.0,23806.0,0.0102826]
[1659278072702,0.00449459,23808.0,23807.0,0.078]
[1659278075396,0.00449459,23808.0,23807.0,0.08723568]
[1659278075623,0.00449459,23808.0,23807.0,0.078]
[1659278075847,0.00449459,23808.0,23806.0,0.00701507]
[1659278076070,0.00449459,23808.0,23806.0,0.4142724]
[1659278076294,0.00449459,23808.0,23806.0,0.00701507]
[1659278076539,0.00449459,23808.0,23806.0,0.08601507]
[1659278077436,0.303638,23807.0,23806.0,0.08601507]
[1659278077898,0.33520938,23807.0,23806.0,0.00701507]
[1659278078573,0.303638,23807.0,23806.0,0.08601507]
[1659278079028,0.00449459,23808.0,23806.0,0.08601507]
[1659278079465,0.303638,23807.0,23806.0,0.08601507]
[1659278079690,0.00449459,23808.0,23806.0,0.08601507]
[1659278079905,0.303638,23807.0,23806.0,0.00701507]
[1659278080596,0.303638,23807.0,23806.0,0.08501507]
[1659278081058,0.30813259,23808.0,23806.0,0.08501507]
[1659278081515,0.45725733,23807.0,23806.0,0.08501507]
[1659278081750,0.76089533,23807.0,23806.0,0.08501507]
[1659278081971,0.76089533,23807.0,23806.0,0.00701507]
[1659278082436,1.20529533,23807.0,23806.0,0.00701507]
[1659278082654,1.19629533,23807.0,23806.0,0.00701507]
[1659278083160,0.75189533,23807.0,23806.0,0.00701507]
[1659278083385,1.19629533,23807.0,23806.0,0.00701507]
[1659278083860,1.15529533,23807.0,23806.0,0.00701507]
[1659278084536,1.23229533,23807.0,23806.0,0.00701507]
[1659278084967,1.26375768,23807.0,23806.0,0.00701507]
[1659278085880,1.18675768,23807.0,23806.0,0.00701507]
[1659278086549,1.29075768,23807.0,23806.0,0.00701507]
[1659278086781,1.24075768,23807.0,23806.0,0.00701507]
[1659278087748,1.24075768,23807.0,23803.0,0.0011]
[1659278087966,0.76089533,23806.0,23803.0,0.0011]
[1659278088200,0.71089533,23805.0,23803.0,0.0011]
[1659278088456,0.303638,23804.0,23803.0,0.0011]
[1659278088678,0.33510035,23804.0,23803.0,0.0011]
[1659278090279,0.40725733,23805.0,23803.0,0.0011]
[1659278090493,0.40725733,23805.0,23803.0,0.0721]
[1659278091424,0.353638,23804.0,23803.0,0.0721]
[1659278091652,0.76089533,23804.0,23803.0,0.0721]
[1659278091883,0.76089533,23804.0,23803.0,0.0011]
[1659278092350,0.76089533,23804.0,23803.0,0.00805021]
[1659278092567,1.18589533,23804.0,23803.0,0.00110021]
[1659278092793,1.99039533,23804.0,23803.0,0.00110021]
[1659278093026,1.99039533,23804.0,23801.0,6.011e-05]
[1659278093270,0.1,23800.0,23797.0,0.001]
[1659278093492,1.0,23798.0,23797.0,0.001]
[1659278093729,2.01089533,23798.0,23797.0,0.001]
[1659278093952,0.79235768,23798.0,23797.0,0.001]
[1659278094696,0.340638,23798.0,23797.0,0.001]
[1659278094967,0.06846235,23798.0,23797.0,0.001]
[1659278095425,0.07011023,23798.0,23797.0,0.001]
[1659278095900,0.46654823,23798.0,23797.0,0.001]
[1659278096142,0.00164788,23798.0,23797.0,0.0455]
[1659278096375,0.00164788,23798.0,23797.0,0.001]
[1659278096610,0.04064788,23798.0,23797.0,0.001]
[1659278097059,0.07211023,23798.0,23797.0,0.001]
[1659278097518,0.48101544,23798.0,23797.0,0.001]
[1659278097749,0.78465344,23798.0,23797.0,0.001]
[1659278097976,0.74565344,23798.0,23797.0,0.001]
[1659278098637,0.78565344,23798.0,23797.0,0.001]
[1659278100066,0.74565344,23798.0,23797.0,0.001]
[1659278100550,0.78565344,23798.0,23797.0,0.001]
[1659278101955,0.74565344,23798.0,23797.0,0.001]
[1659278102721,0.78565344,23798.0,23797.0,0.001]
[1659278103855,0.74565344,23798.0,23797.0,0.001]
[1659278104507,0.78465344,23798.0,23797.0,0.001]
[1659278105889,0.74565344,23798.0,23797.0,0.001]
[1659278106655,0.78365344,23798.0,23797.0,0.001]
[1659278107888,0.74565344,23798.0,23797.0,0.001]
[1659278108595,1.23205344,23798.0,23797.0,0.001]
[1659278108819,0.78765344,23798.0,23797.0,0.001]
[1659278109271,0.34893376,23798.0,23797.0,0.001]
[1659278109494,0.04529576,23798.0,23797.0,0.05075995]
[1659278109949,0.00329576,23798.0,23797.0,0.05075995]
[1659278110564,0.04029576,23798.0,23797.0,0.04995995]
[1659278111325,0.34393376,23798.0,23797.0,0.04995995]
[1659278111980,0.00329576,23798.0,23797.0,0.04995995]
[1659278112449,0.30693376,23798.0,23797.0,0.04995995]
[1659278112714,0.30693376,23798.0,23797.0,0.03995995]
[1659278112941,0.30693376,23798.0,23797.0,0.03945995]
[1659278112942,0.37539611,23798.0,23797.0,0.03945995]
[1659278113794,0.34393376,23798.0,23797.0,0.03945995]
[1659278114076,0.30693376,23798.0,23797.0,0.03945995]
[1659278114746,0.00329576,23798.0,23797.0,0.04267077]
[1659278114962,0.00329576,23798.0,23797.0,0.03945995]
[1659278115853,0.00329576,23798.0,23797.0,0.04267077]
[1659278116076,0.00329576,23798.0,23797.0,0.03945995]
[1659278116742,0.00329576,23798.0,23797.0,0.04267077]
[1659278117006,0.00329576,23798.0,23797.0,0.03945995]
[1659278118222,0.04029576,23798.0,23797.0,0.03945995]
[1659278118608,0.04029576,23798.0,23797.0,0.44671728]
[1659278118812,0.07729576,23798.0,23797.0,1.08222465]
[1659278119019,0.07729576,23798.0,23797.0,1.21032465]
[1659278119482,0.00329576,23798.0,23797.0,1.21032465]
[1659278120107,0.00329576,23798.0,23797.0,1.80682465]
[1659278120322,0.00329576,23798.0,23797.0,1.88582465]
[1659278121057,0.00329576,23798.0,23797.0,1.93582465]
[1659278121703,0.00329576,23798.0,23797.0,1.85682465]
[1659278122398,1.576e-05,23798.0,23797.0,2.43582465]
[1659278122628,1.576e-05,23798.0,23797.0,1.93582465]
[1659278123512,0.00309276,23798.0,23797.0,1.94813345]
[1659278123763,0.00309276,23798.0,23797.0,1.86913345]
[1659278124467,0.00309276,23798.0,23797.0,1.94813345]
[1659278125121,9.276e-05,23798.0,23797.0,1.64813345]
[1659278125335,0.00313988,23798.0,23797.0,1.64813345]
[1659278125814,0.00313988,23798.0,23797.0,1.56913345]
[1659278126034,3.988e-05,23798.0,23797.0,1.56913345]
[1659278126478,0.0030431,23798.0,23797.0,1.94813345]
[1659278127831,0.0030431,23798.0,23797.0,1.86913345]
[1659278128523,0.0030431,23798.0,23797.0,1.94813345]
[1659278128958,0.0030431,23798.0,23797.0,1.91661345]
[1659278129170,0.0030431,23798.0,23797.0,1.94813345]
[1659278129674,0.0030431,23798.0,23797.0,1.91661345]
[1659278129902,0.0030431,23798.0,23797.0,1.83761345]
[1659278130091,0.0030431,23798.0,23797.0,1.53761345]
[1659278130321,0.0030431,23798.0,23797.0,1.48761345]
[1659278130549,0.0030431,23798.0,23797.0,1.56661345]
[1659278130933,0.0030431,23798.0,23797.0,1.43851345]
[1659278131725,0.0030431,23798.0,23797.0,1.35951345]
[1659278131950,0.0030431,23798.0,23797.0,1.34720465]
[1659278132470,0.0030431,23798.0,23797.0,0.52571728]
[1659278132933,0.0030431,23798.0,23797.0,0.11845995]
[1659278133871,0.0030431,23798.0,23797.0,0.03945995]
[1659278134321,0.0620431,23798.0,23797.0,0.03945995]
[1659278135684,0.0030431,23798.0,23797.0,0.03945995]
[1659278136150,0.0030431,23798.0,23797.0,0.04812823]
[1659278136379,0.0280431,23798.0,23797.0,0.11645995]
[1659278136829,0.05950545,23798.0,23797.0,0.11645995]
[1659278137310,0.0280431,23798.0,23797.0,0.11645995]
[1659278137704,0.0030431,23798.0,23797.0,0.03945995]
[1659278137939,0.0030431,23798.0,23797.0,0.44671728]
[1659278138178,4.31e-05,23798.0,23797.0,1.17845528]
[1659278138416,0.02791074,23798.0,23797.0,1.32130958]
[1659278138641,0.00146615,23808.0,23797.0,1.40282958]
[1659278138880,0.00146615,23808.0,23805.0,0.1297]
[1659278139086,0.00146615,23808.0,23806.0,0.303638]
[1659278139312,0.00146615,23808.0,23807.0,0.64630877]
[1659278139772,0.00146615,23808.0,23807.0,0.74630877]
[1659278140287,0.00146615,23808.0,23807.0,0.65594087]
[1659278140514,0.00146615,23808.0,23807.0,0.36266771]
[1659278140738,0.00146615,23808.0,23807.0,0.66266771]
[1659278140958,0.0329285,23808.0,23807.0,0.35682479]
[1659278141247,0.00146615,23808.0,23807.0,0.05318679]
[1659278141695,0.00146615,23808.0,23807.0,0.04618679]
[1659278141917,0.3365665,23808.0,23807.0,0.04618679]
[1659278142387,0.30510415,23808.0,23807.0,0.05202971]
[1659278142618,0.30510415,23808.0,23807.0,0.04618679]
[1659278143293,0.30510415,23808.0,23807.0,0.05202971]
[1659278143517,0.00146615,23808.0,23807.0,0.05202971]
[1659278144454,0.00146615,23808.0,23807.0,0.06402971]
[1659278144915,0.0329285,23808.0,23807.0,0.05818679]
[1659278145147,0.3365665,23808.0,23807.0,0.05818679]
[1659278145593,0.3365665,23808.0,23807.0,0.04618679]
[1659278146312,0.3365665,23808.0,23807.0,0.05718679]
[1659278147617,0.3365665,23808.0,23807.0,0.04618679]
[1659278148275,0.3365665,23808.0,23807.0,0.05718679]